fUST/lending_fUST_20240711
["ID","MTS","AMOUNT","RATE_DAILY","PERIOD"]
[331703430,1720666244783,-500.0,0.00027945,7]
[331703431,1720666244792,-573.56082225,0.00027945,7]
[331703432,1720666244801,-1112.54,0.00027945,7]
[331703433,1720666244810,-821.87,0.00027945,7]
[331703434,1720666244819,-508.66189471,0.00027945,7]
[331703435,1720666244831,-565.89,0.00027945,7]
[331703436,1720666244840,-500.0,0.00027945,7]
[331703437,1720666244850,-500.0,0.00027945,7]
[331703438,1720666244860,-500.0,0.00027945,7]
[331703439,1720666244869,-474.93921109,0.00027945,7]
[331703440,1720666244878,-585.87,0.00027945,7]
[331703441,1720666244887,-500.0,0.00027945,7]
[331703443,1720666244896,-500.0,0.00027945,7]
[331703445,1720666244905,-656.98,0.00027945,7]
[331703447,1720666244913,-500.0,0.00027945,7]
[331703448,1720666244922,-830.69,0.00027945,7]
[331703449,1720666244931,-380.63778886,0.00027945,7]
[331703450,1720666244940,-692.66,0.00027945,7]
[331703451,1720666244949,-640.0,0.00027945,7]
[331703452,1720666244959,-500.0,0.00027945,7]
[331703453,1720666244968,-1034.31,0.00027945,7]
[331703454,1720666244977,-421.27826806,0.00027945,7]
[331703455,1720666244986,-500.0,0.00027945,7]
[331703456,1720666244995,-2861.67,0.00027945,7]
[331703457,1720666245004,-574.08,0.00027945,7]
[331703458,1720666245014,-1585.22,0.00027945,7]
[331703459,1720666245023,-500.0,0.00027945,7]
[331703460,1720666245032,-554.18,0.00027945,7]
[331703461,1720666245042,-616.81,0.00027945,7]
[331703462,1720666245051,-500.0,0.00027945,7]
[331703463,1720666245060,-500.0,0.00027945,7]
[331703464,1720666245069,-240.35979658,0.00027945,7]
[331703465,1720666245079,-500.0,0.00027945,7]
[331703466,1720666245088,-500.0,0.00027945,7]
[331703467,1720666245097,-500.0,0.00027945,7]
[331703468,1720666245106,-541.57,0.00027945,7]
[331703469,1720666245115,-1443.01,0.00027945,7]
[331703470,1720666245124,-679.86,0.00027945,7]
[331703471,1720666245134,-2704.21,0.00027945,7]
[331703472,1720666245143,-500.0,0.00027945,7]
[331703473,1720666245152,-6641.28,0.00027945,7]
[331703474,1720666245162,-893.82,0.00027945,7]
[331703475,1720666245171,-556.49,0.00027945,7]
[331703476,1720666245181,-500.0,0.00027945,7]
[331703477,1720666245190,-500.0,0.00027945,7]
[331703478,1720666245200,-154.88053501,0.00027999,2]
[331703479,1720666245209,-526.29790288,0.00028,2]
[331703480,1720666245219,-422.783159,0.00028015,2]
[331703481,1720666245230,-500.0,0.00028218,7]
[331703482,1720666245239,-21514.26631988,0.00028219,5]
[331703483,1720666245249,-1459.56,0.00028219,4]
[331703484,1720666245258,-500.0,0.00028219,7]
[331703485,1720666245268,-500.0,0.00028219,2]
[331703486,1720666245277,-500.0,0.00028219,7]
[331703487,1720666245287,-500.0,0.00028219,7]
[331703488,1720666245297,-511.65017843,0.00028219,7]
[331703489,1720666245306,-500.0,0.00028219,7]
[331703490,1720666245316,-500.0,0.00028219,7]
[331703491,1720666245326,-500.0,0.00028219,7]
[331703492,1720666245336,-1627.1,0.00028219,7]
[331703493,1720666245345,-916.63,0.00028219,7]
[331703494,1720666245364,-3721.14,0.00028219,7]
[331703495,1720666245374,-500.0,0.00028219,7]
[331703496,1720666245384,-500.0,0.00028219,7]
[331703497,1720666245393,-500.0,0.00028219,7]
[331703498,1720666245402,-500.0,0.00028219,7]
[331703499,1720666245411,-500.0,0.00028219,7]
[331703500,1720666245420,-1112.54,0.00028219,7]
[331703501,1720666245430,-821.87,0.00028219,7]
[331703502,1720666245439,-565.89,0.00028219,7]
[331703503,1720666245449,-500.0,0.00028219,7]
[331703504,1720666245458,-500.0,0.00028219,7]
[331703505,1720666245467,-500.0,0.00028219,7]
[331703506,1720666245476,-585.87,0.00028219,7]
[331703507,1720666245485,-500.0,0.00028219,7]
[331703508,1720666245495,-500.0,0.00028219,7]
[331703509,1720666245504,-656.98,0.00028219,7]
[331703510,1720666245513,-500.0,0.00028219,7]
[331703511,1720666245652,-830.69,0.00028219,7]
[331703512,1720666245662,-692.66,0.00028219,7]
[331703513,1720666245671,-500.0,0.00028219,7]
[331703514,1720666245681,-1034.31,0.00028219,7]
[331703515,1720666245690,-500.0,0.00028219,7]
[331703516,1720666245702,-2861.67,0.00028219,7]
[331703517,1720666245711,-574.08,0.00028219,7]
[331703518,1720666245721,-1585.22,0.00028219,7]
[331703519,1720666245730,-500.0,0.00028219,7]
[331703520,1720666245740,-554.18,0.00028219,7]
[331703521,1720666245749,-616.81,0.00028219,7]
[331703522,1720666245758,-500.0,0.00028219,7]
[331703523,1720666245767,-500.0,0.00028219,7]
[331703524,1720666245777,-500.0,0.00028219,7]
[331703525,1720666245786,-500.0,0.00028219,7]
[331703526,1720666245795,-508.75326275,0.00028219,7]
[331703527,1720666245804,-541.57,0.00028219,7]
[331703528,1720666245814,-1443.01,0.00028219,7]
[331703529,1720666245823,-679.86,0.00028219,7]
[331703530,1720666245832,-2704.21,0.00028219,7]
[331703531,1720666245841,-500.0,0.00028219,7]
[331703532,1720666245850,-6641.28,0.00028219,7]
[331703533,1720666245859,-893.82,0.00028219,7]
[331703534,1720666245868,-556.49,0.00028219,7]
[331703535,1720666245878,-500.0,0.00028219,7]
[331703536,1720666245887,-500.0,0.00028219,7]
[331703537,1720666245897,-2475.88098441,0.00028326,2]
[331703538,1720666245906,-88888.0,0.00028393,3]
[331703539,1720666245916,-500.0,0.00028492,7]
[331703540,1720666245925,-1459.56,0.00028493,4]
[331703541,1720666245935,-500.0,0.00028493,7]
[331703542,1720666245944,-500.0,0.00028493,2]
[331703543,1720666245955,-500.0,0.00028493,7]
[331703544,1720666245964,-500.0,0.00028493,7]
[331703545,1720666245974,-500.0,0.00028493,7]
[331703546,1720666245983,-500.0,0.00028493,7]
[331703547,1720666245993,-500.0,0.00028493,7]
[331703548,1720666246002,-1627.1,0.00028493,7]
[331703549,1720666246011,-916.63,0.00028493,7]
[331703550,1720666246020,-3721.14,0.00028493,7]
[331703551,1720666246028,-500.0,0.00028493,7]
[331703552,1720666246037,-500.0,0.00028493,7]
[331703553,1720666246046,-500.0,0.00028493,7]
[331703554,1720666246055,-500.0,0.00028493,7]
[331703555,1720666246064,-627.50463826,0.00028493,7]
[331703556,1720666246073,-1112.54,0.00028493,7]
[331703557,1720666246082,-821.87,0.00028493,7]
[331703558,1720666246091,-565.89,0.00028493,7]
[331703559,1720666246100,-500.0,0.00028493,7]
[331703560,1720666246108,-211.42566016,0.00028493,7]
[331703561,1720666246117,-478.66653711,0.00028493,7]
[331703562,1720666246126,-585.87,0.00028493,7]
[331703563,1720666246135,-500.0,0.00028493,7]
[331703564,1720666246144,-500.0,0.00028493,7]
[331703565,1720666246153,-656.98,0.00028493,7]
[331703566,1720666246166,-500.0,0.00028493,7]
[331703567,1720666246175,-830.69,0.00028493,7]
[331703568,1720666246185,-692.66,0.00028493,7]
[331703569,1720666246193,-500.0,0.00028493,7]
[331703570,1720666246204,-1034.31,0.00028493,7]
[331703571,1720666246213,-500.0,0.00028493,7]
[331703572,1720666246223,-2861.67,0.00028493,7]
[331703573,1720666246232,-574.08,0.00028493,7]
[331703574,1720666246241,-1585.22,0.00028493,7]
[331703575,1720666246250,-500.0,0.00028493,7]
[331703576,1720666246259,-554.18,0.00028493,7]
[331703577,1720666246268,-616.81,0.00028493,7]
[331703578,1720666246277,-500.0,0.00028493,7]
[331703579,1720666246288,-500.0,0.00028493,7]
[331703580,1720666246297,-500.0,0.00028493,7]
[331703581,1720666246307,-500.0,0.00028493,7]
[331703582,1720666246316,-541.57,0.00028493,7]
[331703583,1720666246327,-1443.01,0.00028493,7]
[331703584,1720666246337,-679.86,0.00028493,7]
[331703585,1720666246348,-2704.21,0.00028493,7]
[331703586,1720666246358,-500.0,0.00028493,7]
[331703587,1720666246367,-151.0,0.00028493,7]
[331703588,1720666246376,-6641.28,0.00028493,7]
[331703589,1720666246386,-893.82,0.00028493,7]
[331703590,1720666246395,-556.49,0.00028493,7]
[331703591,1720666246404,-500.0,0.00028493,7]
[331703592,1720666246414,-500.0,0.00028493,7]
[331703593,1720666246423,-151.0,0.00028493,2]
[331703594,1720666246433,-151.0,0.00028493,7]
[331703595,1720666246442,-151.0,0.00028493,7]
[331703596,1720666246453,-312.017352,0.00028493,7]
[331703597,1720666246462,-312.017352,0.00028493,7]
[331703598,1720666246471,-483.63792122,0.0002876,7]
[331703599,1720666246480,-1459.56,0.00028767,4]
[331703600,1720666246489,-500.0,0.00028767,7]
[331703601,1720666246498,-500.0,0.00028767,2]
[331703602,1720666246508,-430.22156882,0.00028767,7]
[331703604,1720666246517,-500.0,0.00028767,7]
[331703606,1720666246526,-500.0,0.00028767,7]
[331703608,1720666246535,-500.0,0.00028767,7]
[331703610,1720666246545,-500.0,0.00028767,7]
[331703612,1720666246554,-1627.1,0.00028767,7]
[331703614,1720666246564,-916.63,0.00028767,7]
[331703616,1720666246573,-3721.14,0.00028767,7]
[331703618,1720666246582,-500.0,0.00028767,7]
[331703620,1720666246592,-500.0,0.00028767,7]
[331703622,1720666246600,-500.0,0.00028767,7]
[331703623,1720666246609,-500.0,0.00028767,7]
[331703624,1720666246619,-1112.54,0.00028767,7]
[331703625,1720666246628,-821.87,0.00028767,7]
[331703626,1720666246638,-565.89,0.00028767,7]
[331703627,1720666246648,-500.0,0.00028767,7]
[331703628,1720666246658,-585.87,0.00028767,7]
[331703629,1720666246668,-626.85118571,0.00028767,7]
[331703631,1720666246677,-500.0,0.00028767,7]
[331703633,1720666246686,-656.98,0.00028767,7]
[331703634,1720666246697,-500.0,0.00028767,7]
[331703635,1720666246706,-830.69,0.00028767,7]
[331703637,1720666246714,-692.66,0.00028767,7]
[331703638,1720666246724,-500.0,0.00028767,7]
[331703639,1720666246734,-1034.31,0.00028767,7]
[331703640,1720666246743,-500.0,0.00028767,7]
[331703641,1720666246752,-2861.67,0.00028767,7]
[331703642,1720666246761,-574.08,0.00028767,7]
[331703643,1720666246771,-1585.22,0.00028767,7]
[331703644,1720666246780,-500.0,0.00028767,7]
[331703645,1720666246789,-554.18,0.00028767,7]
[331703646,1720666246798,-616.81,0.00028767,7]
[331703647,1720666246808,-500.0,0.00028767,7]
[331703648,1720666246818,-500.0,0.00028767,7]
[331703649,1720666246827,-429.68827956,0.00028767,7]
[331703650,1720666246838,-500.0,0.00028767,7]
[331703651,1720666246848,-541.57,0.00028767,7]
[331703652,1720666246858,-1443.01,0.00028767,7]
[331703653,1720666246867,-679.86,0.00028767,7]
[331703654,1720666246876,-2704.21,0.00028767,7]
[331703655,1720666246885,-500.0,0.00028767,7]
[331703656,1720666246904,-6641.28,0.00028767,7]
[331703657,1720666246913,-893.82,0.00028767,7]
[331703658,1720666246923,-556.49,0.00028767,7]
[331703659,1720666246932,-295.32648241,0.00028767,7]
[331703666,1720666756460,622.3,0.00017401,2]
[331703668,1720666937213,303.52677494,0.00016255,2]
[331703669,1720666961801,307.02146359,0.00016255,2]
[331703670,1720666976812,188.29579803,0.00016255,2]
[331703672,1720666980353,156.25229376,0.00016255,2]
[331703673,1720666999059,160.13804377,0.00016255,2]
[331703674,1720667013477,428.90870644,0.00016255,2]
[331703675,1720667040198,154.88053501,0.00016255,2]
[331703676,1720667061948,403.69228639,0.00016255,2]
[331703678,1720667097675,154.68038251,0.00016255,2]
[331703679,1720667129403,183.4531447,0.00016255,2]
[331703682,1720667191802,950.00727179,0.00016255,2]
[331703683,1720667205988,155.1580003,0.00016255,2]
[331703684,1720667244277,-322.84620286,0.00018798,2]
[331703685,1720667244297,-224.43819187,0.000189,2]
[331703686,1720667244317,-158.99821132,0.00019165,2]
[331703687,1720667244339,-243.0999072,0.00019703,2]
[331703688,1720667244359,-395.15404985,0.00019703,2]
[331703689,1720667244379,-154.59033561,0.0002,2]
[331703690,1720667244402,-145.12899588,0.00021096,2]
[331703691,1720667245962,403.69228639,0.00016255,2]
[331703692,1720667343777,2593.07555969,0.00016255,2]
[331703694,1720667358118,-4805.61126585,0.00018899,2]
[331703695,1720667358138,-310.17592974,0.00019165,2]
[331703696,1720667358160,-154.59033561,0.00019165,2]
[331703697,1720667358181,-300.0,0.00019702,2]
[331703698,1720667358202,-404.1525769,0.00019703,2]
[331703699,1720667358222,-284.5704575,0.00019703,2]
[331703700,1720667358244,-428.44271624,0.0002,2]
[331703701,1720667358263,-154.59033561,0.0002,2]
[331703702,1720667358283,-312.03148501,0.00021095,2]
[331703703,1720667358306,-524.1077099,0.00021095,2]
[331703704,1720667358326,-218.33840512,0.00021096,2]
[331703705,1720667358347,-472.090249,0.00021293,2]
[331703706,1720667358368,-420.0,0.00021672,2]
[331703707,1720667358391,-160.445735,0.00021748,2]
[331703708,1720667358411,-381.1593141,0.0002243,2]
[331703709,1720667358433,-320.57359109,0.0002243,2]
[331703710,1720667358453,-166.666666,0.00022657,2]
[331703711,1720667358475,-24900.0,0.00022723,2]
[331703712,1720667358497,-200.0,0.00022941,2]
[331703713,1720667358517,-156.3978779,0.00022941,2]
[331703714,1720667358538,-271.92319854,0.00022941,2]
[331703715,1720667363408,1604.39902116,0.00019703,2]
[331703716,1720667378114,191.20491413,0.00019703,2]
[331703717,1720667389686,5742.30328228,0.00019703,2]
[331703718,1720667396864,193.88291361,0.00019703,2]
[331703772,1720667438492,-1477.66780531,0.00023146,2]
[331703773,1720667438503,-166.666666,0.00023246,2]
[331703774,1720667438514,-287.0,0.00023366,2]
[331703775,1720667438524,-24900.0,0.00023367,2]
[331703776,1720667438534,-308.57307675,0.00023453,2]
[331703777,1720667438544,-201.03633962,0.00023455,2]
[331703778,1720667438554,-957.84207788,0.00023866,2]
[331703779,1720667438565,-154.73154765,0.00023882,2]
[331703780,1720667438575,-154.59033561,0.00023882,2]
[331703781,1720667438586,-524.1077099,0.00023882,2]
[331703782,1720667438596,-154.59033561,0.00023882,2]
[331703783,1720667438608,-524.1077099,0.00023882,2]
[331703784,1720667438618,-224.43819187,0.000239,2]
[331703785,1720667438628,-2128.85592131,0.00023966,2]
[331703786,1720667438639,-518.18746811,0.00023966,2]
[331703787,1720667438648,-2134.96934119,0.0002448,2]
[331703788,1720667438659,-30000.0,0.00025052,2]
[331703789,1720667438669,-2000.0,0.00025094,2]
[331703790,1720667438679,-1715.55,0.00025184,3]
[331703791,1720667438689,-3271.43,0.00025184,3]
[331703792,1720667438699,-2726.19,0.00025184,3]
[331703793,1720667438708,-257.54,0.00025184,3]
[331703794,1720667438719,-60225.2524273,0.00025194,3]
[331703795,1720667438729,-37951.07458082,0.00025204,2]
[331703796,1720667438739,-990.35239378,0.00025401,2]
[331703797,1720667438750,-163.229186,0.00025798,2]
[331703798,1720667438763,-492.55302453,0.00025869,2]
[331703799,1720667438773,-990.35239376,0.00025875,2]
[331703800,1720667438783,-1500.0,0.00026,7]
[331703801,1720667438793,-150.60173835,0.00026149,2]
[331703802,1720667438805,-366.69138635,0.0002619,2]
[331703803,1720667438816,-5293.69736034,0.00026231,2]
[331703804,1720667438826,-957.84207784,0.00026243,2]
[331703805,1720667438836,-990.35239376,0.00026349,2]
[331703806,1720667438846,-166.666666,0.00026415,2]
[331703807,1720667438856,-515.08,0.00026554,3]
[331703808,1720667438867,-990.35239376,0.00026823,2]
[331703809,1720667438878,-155.45465387,0.00026848,2]
[331703810,1720667438888,-156.0,0.0002696,62]
[331703811,1720667438899,-156.0,0.0002697,62]
[331703812,1720667438909,-156.0,0.0002698,62]
[331703813,1720667438919,-500.0,0.00026989,2]
[331703814,1720667438929,-282.21405407,0.00026989,2]
[331703815,1720667438938,-500.0,0.00026989,2]
[331703816,1720667438950,-500.0,0.00026989,2]
[331703817,1720667438959,-513.18076042,0.00026989,2]
[331703818,1720667438969,-509.17876094,0.00026989,2]
[331703819,1720667438979,-6559.62838517,0.0002699,5]
[331703820,1720667438989,-180675.757282,0.0002699,3]
[331703821,1720667439145,-135581.28281971,0.00027,2]
[331703822,1720667439155,-1000.0,0.00027,7]
[331703823,1720667439165,-10601.81621069,0.00027184,2]
[331703824,1720667439175,-208.81908142,0.00027194,2]
[331703825,1720667439184,-363.467401,0.00027195,2]
[331703826,1720667439194,-222.8088214,0.00027276,2]
[331703827,1720667439204,-500.0,0.00027276,2]
[331703828,1720667439214,-445.08493887,0.00027276,2]
[331703829,1720667439224,-161.56366666,0.00027276,2]
[331703830,1720667439233,-500.0,0.00027276,2]
[331703831,1720667439243,-500.0,0.00027276,2]
[331703832,1720667439253,-509.08815377,0.00027276,2]
[331703833,1720667439263,-500.0,0.00027276,2]
[331703834,1720667439272,-500.0,0.00027276,2]
[331703835,1720667439282,-500.0,0.00027276,2]
[331703836,1720667439291,-500.0,0.00027276,2]
[331703837,1720667439301,-500.0,0.00027276,2]
[331703838,1720667439310,-500.0,0.00027276,2]
[331703839,1720667439320,-500.0,0.00027276,2]
[331703840,1720667439330,-500.0,0.00027276,2]
[331703841,1720667439340,-500.0,0.00027276,2]
[331703842,1720667439350,-374.36279435,0.00027276,2]
[331703843,1720667439359,-301.45287545,0.00027276,2]
[331703844,1720667439369,-500.0,0.00027276,2]
[331703845,1720667439380,-400.0,0.00027276,2]
[331703846,1720667439391,-120450.504855,0.00027277,3]
[331703847,1720667439401,-1076.61056337,0.00027287,3]
[331703848,1720667439445,158.076638,0.00022383,2]
[331703890,1720667440588,-403.69228639,0.00023882,2]
[331703892,1720667440600,-2271.82,0.00025184,3]
[331703894,1720667440611,-87811.38943663,0.00027287,3]
[331703896,1720667440621,-157.839308,0.00027287,7]
[331703898,1720667440631,-157.839308,0.00027287,7]
[331703900,1720667440641,-990.35239376,0.00027297,2]
[331703902,1720667440651,-502.9945395,0.00027397,2]
[331703904,1720667440661,-301.12860037,0.00027397,7]
[331703906,1720667440671,-500.0,0.00027397,7]
[331703908,1720667440681,-500.0,0.00027397,7]
[331703910,1720667440691,-500.0,0.00027397,7]
[331703912,1720667440701,-515.26768314,0.00027397,7]
[331703914,1720667440710,-500.0,0.00027397,7]
[331703917,1720667440720,-500.0,0.00027397,7]
[331703919,1720667440730,-500.0,0.00027397,7]
[331703921,1720667440739,-632.29556562,0.00027397,7]
[331703923,1720667440749,-500.0,0.00027397,7]
[331703925,1720667440759,-500.0,0.00027397,7]
[331703927,1720667440768,-511.01571177,0.00027397,7]
[331703929,1720667440778,-500.0,0.00027397,7]
[331703930,1720667440789,-512.64,0.00027397,7]
[331703932,1720667440799,-500.0,0.00027397,7]
[331703934,1720667440810,-500.0,0.00027397,7]
[331703936,1720667440820,-500.0,0.00027397,7]
[331703937,1720667440830,-500.0,0.00027397,7]
[331703938,1720667440841,-500.0,0.00027397,7]
[331703939,1720667440851,-500.0,0.00027397,7]
[331703940,1720667440861,-502.13801024,0.00027397,7]
[331703941,1720667440871,-500.0,0.00027397,7]
[331703942,1720667440880,-500.0,0.00027397,7]
[331703943,1720667440890,-500.0,0.00027397,7]
[331703944,1720667440900,-500.0,0.00027397,7]
[331703945,1720667440910,-500.0,0.00027397,7]
[331703946,1720667440920,-186.24773294,0.00027397,7]
[331703947,1720667440930,-500.0,0.00027397,7]
[331703948,1720667440939,-511.65017843,0.00027397,7]
[331703949,1720667440949,-290.16021678,0.00027397,7]
[331703950,1720667440958,-500.0,0.00027397,7]
[331703951,1720667440968,-761.46,0.00027397,7]
[331703952,1720667440978,-802.05,0.00027397,7]
[331703953,1720667440987,-380.63778886,0.00027397,7]
[331703954,1720667440997,-500.0,0.00027397,7]
[331703955,1720667441006,-640.5086711,0.00027397,7]
[331703956,1720667441016,-634.94,0.00027397,7]
[331703957,1720667441026,-640.0,0.00027397,7]
[331703958,1720667441035,-1423.71,0.00027397,7]
[331703959,1720667441045,-500.0,0.00027397,7]
[331703960,1720667441055,-948.12,0.00027397,7]
[331703961,1720667441064,-421.27826806,0.00027397,7]
[331703962,1720667441074,-500.0,0.00027397,7]
[331703963,1720667441083,-500.0,0.00027397,7]
[331703964,1720667441094,-565.41,0.00027397,7]
[331703965,1720667441104,-483.63792122,0.00027397,7]
[331703966,1720667441114,-3417.79,0.00027397,7]
[331703967,1720667441123,-526.24,0.00027397,7]
[331703968,1720667441134,-508.0,0.00027397,7]
[331703969,1720667441144,-500.0,0.00027397,7]
[331703970,1720667441153,-500.0,0.00027397,7]
[331703971,1720667441163,-500.0,0.00027397,7]
[331703972,1720667441172,-753.38,0.00027397,7]
[331703973,1720667441182,-500.0,0.00027397,7]
[331703974,1720667441192,-500.0,0.00027397,7]
[331703975,1720667441201,-1019.83,0.00027397,7]
[331703976,1720667441210,-602.23,0.00027397,7]
[331703977,1720667441219,-581.21235626,0.00027397,7]
[331703978,1720667441229,-600.0,0.00027397,7]
[331703979,1720667441238,-532.15749455,0.00027397,7]
[331703980,1720667441247,-639.402386,0.00027397,7]
[331703981,1720667441256,-500.0,0.00027397,7]
[331703982,1720667441265,-530.4203538,0.00027397,7]
[331703983,1720667441275,-500.0,0.00027397,7]
[331703984,1720667441284,-500.0,0.00027397,7]
[331703985,1720667441294,-500.0,0.00027397,7]
[331703986,1720667441304,-500.0,0.00027397,7]
[331703987,1720667441313,-500.0,0.00027397,7]
[331703988,1720667441322,-500.0,0.00027397,7]
[331703989,1720667441331,-500.0,0.00027397,7]
[331703990,1720667441341,-500.0,0.00027397,7]
[331703991,1720667441351,-500.0,0.00027397,7]
[331703992,1720667441360,-500.0,0.00027397,7]
[331703993,1720667441369,-500.0,0.00027397,7]
[331703994,1720667441379,-151.0,0.00027397,7]
[331703995,1720667441388,-327.80685678,0.00027397,7]
[331703996,1720667441397,-500.0,0.00027397,7]
[331703997,1720667441407,-2623.2,0.00027397,7]
[331703998,1720667441416,-560.99005077,0.00027397,7]
[331703999,1720667441425,-1453.12,0.00027397,7]
[331704000,1720667441435,-503.06573629,0.00027397,7]
[331704001,1720667441444,-502.5707357,0.00027397,7]
[331704002,1720667441453,-500.0,0.00027397,7]
[331704003,1720667441463,-500.0,0.00027397,7]
[331704004,1720667441472,-500.0,0.00027397,7]
[331704005,1720667441483,-510.29106682,0.00027397,7]
[331704006,1720667441492,-500.0,0.00027397,7]
[331704007,1720667441502,-500.0,0.00027397,7]
[331704008,1720667441511,-2988.867456,0.00027397,7]
[331704009,1720667441521,-500.0,0.00027397,7]
[331704010,1720667441530,-2988.867456,0.00027397,7]
[331704011,1720667441540,-500.0,0.00027397,7]
[331704012,1720667441549,-285.92165846,0.00027397,7]
[331704013,1720667441559,-502.82742443,0.00027397,7]
[331704014,1720667441569,-500.0,0.00027397,7]
[331704015,1720667441579,-500.0,0.00027397,2]
[331704016,1720667441588,-500.0,0.00027397,2]
[331704017,1720667441597,-418.69823287,0.00027397,2]
[331704018,1720667441606,-500.0,0.00027397,2]
[331704019,1720667441616,-500.0,0.00027397,2]
[331704020,1720667441625,-500.0,0.00027397,2]
[331704021,1720667441635,-500.0,0.00027397,2]
[331704022,1720667441644,-500.0,0.00027397,2]
[331704023,1720667441653,-500.0,0.00027397,2]
[331704024,1720667441663,-500.0,0.00027397,2]
[331704025,1720667441672,-500.0,0.00027397,2]
[331704026,1720667441681,-500.0,0.00027397,2]
[331704027,1720667441691,-500.0,0.00027397,2]
[331704028,1720667441700,-500.0,0.00027397,2]
[331704029,1720667441710,-500.0,0.00027397,2]
[331704030,1720667441719,-500.0,0.00027397,2]
[331704031,1720667441729,-500.0,0.00027397,2]
[331704032,1720667441738,-500.0,0.00027397,2]
[331704033,1720667441748,-500.0,0.00027397,2]
[331704034,1720667441758,-301.55644761,0.00027397,2]
[331704035,1720667441767,-500.0,0.00027397,2]
[331704036,1720667441777,-500.0,0.00027397,2]
[331704037,1720667441787,-500.0,0.00027397,2]
[331704038,1720667441797,-500.0,0.00027397,2]
[331704039,1720667441809,-500.0,0.00027397,2]
[331704040,1720667441818,-250.0,0.00027397,2]
[331704041,1720667441828,-500.0,0.00027397,2]
[331704042,1720667441837,-500.0,0.00027397,2]
[331704043,1720667441847,-500.0,0.00027397,2]
[331704044,1720667441856,-500.0,0.00027397,2]
[331704045,1720667441866,-500.0,0.00027397,2]
[331704046,1720667441875,-500.0,0.00027397,2]
[331704047,1720667441884,-500.0,0.00027397,2]
[331704048,1720667441893,-500.0,0.00027397,2]
[331704049,1720667441902,-505.99401703,0.00027397,7]
[331704050,1720667441911,-1382.88,0.00027397,7]
[331704051,1720667441920,-500.0,0.00027397,2]
[331704052,1720667441930,-500.0,0.00027397,2]
[331704053,1720667441940,-500.0,0.00027397,2]
[331704054,1720667441949,-500.0,0.00027397,2]
[331704055,1720667441959,-500.0,0.00027397,2]
[331704056,1720667441968,-500.0,0.00027397,2]
[331704057,1720667441977,-500.0,0.00027397,2]
[331704058,1720667441987,-500.0,0.00027397,2]
[331704059,1720667441996,-500.0,0.00027397,2]
[331704060,1720667442005,-500.0,0.00027397,2]
[331704061,1720667442014,-500.0,0.00027397,2]
[331704062,1720667442024,-500.0,0.00027397,2]
[331704063,1720667442033,-500.0,0.00027397,2]
[331704064,1720667442042,-500.0,0.00027397,2]
[331704065,1720667442052,-500.0,0.00027397,2]
[331704066,1720667442062,-500.0,0.00027397,2]
[331704067,1720667442071,-500.0,0.00027397,2]
[331704068,1720667442080,-500.0,0.00027397,2]
[331704069,1720667442090,-500.0,0.00027397,2]
[331704070,1720667442099,-500.0,0.00027397,2]
[331704071,1720667442107,-500.0,0.00027397,2]
[331704072,1720667442117,-500.0,0.00027397,2]
[331704073,1720667442127,-500.0,0.00027397,2]
[331704074,1720667442136,-500.0,0.00027397,2]